Workbook

Sheet 入力
C29: ■試算する被保険者の情報
C31: 被保険者となった月 | H31: (令和4年1月1日時点) | L31: 年金収入（年額） | S31: 給与収入（年額） | Z31: その他の所得（年額）
C32: (選択してください) | H32: (選択してください) | R32: 円 | Y32: 円 | AF32: 円
C34: ■同じ世帯の他の被保険者情報１
C36: 同じ世帯に他の被保険者がいる 場合はチェックし、右記を入力 | H36: (令和4年1月1日時点) | L36: 年金収入（年額） | S36: 給与収入（年額） | Z36: その他の所得（年額）
H37: (選択してください) | R37: 円 | Y37: 円 | AF37: 円
C39: ■同じ世帯の他の被保険者情報２
C41: 同じ世帯に他の被保険者がいる 場合はチェックし、右記を入力 | H41: (令和4年1月1日時点) | L41: 年金収入（年額） | S41: 給与収入（年額） | Z41: その他の所得（年額）
H42: (選択してください) | R42: 円 | Y42: 円 | AF42: 円
C44: ■世帯主情報
C46: 世帯主が被保険者以外の場合はチェックし、右記を入力 | H46: (令和4年1月1日時点) | L46: 年金収入（年額） | S46: 給与収入（年額） | Z46: その他の所得（年額）
H47: (選択してください) | R47: 円 | Y47: 円 | AF47: 円
E49: 保険料試算 | S49: 入力情報のクリア
D50: 入力等が終わりましたら、ここをクリックしてください。 | V50: ="(試算日:"&TEXT(TODAY(),"ggge年m月d日"&")") -> (試算日:令和4年3月30日)
D51: あなたの令和４年度の保険料額の試算結果は | Q51: =計算!N3 -> 資格取得月入力エラー | W51: 円 | X51: ( | Y51: =IF(I55="資格取得月入力エラー","***",I55) -> *** | AA51: ヶ月分 | AC51: ) | AD51: です。
E53: 軽減割合 | I53: =計算!D17 -> 年齢選択エラー | J53: =IF(I53="年齢選択エラー","年齢選択エラー",IF(I53="",0,VLOOKUP(I53,設定!$A$32:$B$37,2,0))) -> 年齢選択エラー | Q53: 割 | R53: 世帯の所得によって均等割額の軽減割合が判定 されます(7割,5割,2割または軽減なし)。
D55: 賦課月数➀ | I55: =設定!C2 -> 資格取得月入力エラー | Q55: 月 | R55: 保険料試算の加入月数です（12月未満の場合 は、月数に応じて、試算結果から減額されます）。
D56: 均等割額② | I56: =IF(計算!J3="年齢選択エラー","年齢選択エラー",計算!F3-計算!J3) -> 年齢選択エラー | Q56: 円 | R56: 令和４年度の均等割額は44,170円です。 ※軽減に該当する場合は軽減後の金額です。
D58: 所得割額③ | I58: =計算!E3 -> 0 | Q58: 円 | R58: 被保険者の所得に応じて負担いただく額です。
D59: 所得割率④ | I59: 8.38 | Q59: % | R59: 所得割率は埼玉県内で均一です。
D60: 備考 | I60: ※②と③は、それぞれ10円未満の端数を切捨てます。 ※保険料額は、②と③を合計して、100円未満の端数を切捨てます。 ※令和4年度の保険料額の限度額は、年額66万円になります。

Sheet 設定 (hidden)
B1: 資格取得月 | C1: 月数 | D1: 年金所得 | E1: 給与所得 | F1: その他の所得 | G1: 所得金額調整控除額 | H1: 高齢者特別控除 | I1: 所得金額調整控除(軽減判定所得用) | J1: 軽減判定所得1 | K1: 年金給与所得者の数
A2: 被保険者 | B2: =IF(OR(入力!C32="(選択してください)",ISBLANK(入力!C32)),"資格取得月入力エラー",入力!C32) -> 資格取得月入力エラー | C2: =IF(B2="資格取得月入力エラー","資格取得月入力エラー",VLOOKUP(B2,資格取得月!$A$2:$B$13,2,0)) -> 資格取得月入力エラー | D2: =年金条件式!I3 -> 0 | E2: =VLOOKUP(入力!S32,給与所得!$B$3:$C$14,2) -> 0 | F2: =入力!Z32 -> 0 | G2: =IF(MIN(100000,D2)+MIN(100000,E2)-100000<0,0,MIN(100000,D2)+MIN(100000,E2)-100000) -> 0 | H2: =IF(入力!H32="65歳以上",MIN(150000,D2),0) -> 0 | I2: =IF(MIN(100000,D2-H2)+MIN(100000,E2)-100000<0,0,MIN(100000,D2-H2)+MIN(100000,E2)-100000) -> 0 | J2: =IF(入力!C32="",0,IF(入力!H32="(選択してください)","年齢選択エラー",IF(入力!H32="","年齢選択エラー",(MAX(SUM(D2-H2+E2-I2+F2),0))))) -> 年齢選択エラー | K2: =IF(入力!C32="",0,IF(入力!H32="(選択してください)","年齢選択エラー",IF(入力!H32="","年齢選択エラー",IF(E2+D2-H2>0,1,IF(E2>0,0,IF(入力!S32>550000,1,0)))))) -> 年齢選択エラー
B4: チェックボックス | C4: 年金所得 | D4: 給与所得 | E4: その他の所得 | F4: 所得金額調整控除額 | G4: 高齢者特別控除 | H4: 所得金額調整控除(軽減判定所得用) | I4: 軽減判定所得2 | J4: 年金給与所得者の数
A5: 家族１ | B5: =IF(入力!C37="v",1,0) -> 0 | C5: =IF(入力!C37="v",年金条件式!I4,0) -> 0 | D5: =VLOOKUP(入力!S37,給与所得!$B$18:$C$29,2) -> 0 | E5: =入力!Z37 -> 0 | F5: =IF(MIN(100000,C5)+MIN(100000,D5)-100000<0,0,MIN(100000,C5)+MIN(100000,D5)-100000) -> 0 | G5: =IF(入力!H37="65歳以上",MIN(150000,C5),0) -> 0 | H5: =IF(MIN(100000,C5-G5)+MIN(100000,D5)-100000<0,0,MIN(100000,C5-G5)+MIN(100000,D5)-100000) -> 0 | I5: =IF(入力!C37="",0,IF(入力!H37="(選択してください)","年齢選択エラー",IF(入力!H37="","年齢選択エラー",(MAX(SUM(C5:E5)-H5-G5,0))))) -> 0 | J5: =IF(入力!C37="",0,IF(入力!H37="(選択してください)","年齢選択エラー",IF(入力!H37="","年齢選択エラー",IF(D5+C5-G5>0,1,IF(D5=0,IF(入力!S37>550000,1,0),0))))) -> 0
A6: 家族２ | B6: =IF(入力!C42="v",1,0) -> 0 | C6: =IF(入力!C42="v",年金条件式!I5,0) -> 0 | D6: =VLOOKUP(入力!S42,給与所得!$B$33:$C$44,2) -> 0 | E6: =入力!Z42 -> 0 | F6: =IF(MIN(100000,C6)+MIN(100000,D6)-100000<0,0,MIN(100000,C6)+MIN(100000,D6)-100000) -> 0 | G6: =IF(入力!H42="65歳以上",MIN(150000,C6),0) -> 0 | H6: =IF(MIN(100000,C6-G6)+MIN(100000,D6)-100000<0,0,MIN(100000,C6-G6)+MIN(100000,D6)-100000) -> 0 | I6: =IF(入力!C42="",0,IF(入力!H42="(選択してください)","年齢選択エラー",IF(入力!H42="","年齢選択エラー",(MAX(SUM(C6:E6)-H6-G6,0))))) -> 0 | J6: =IF(入力!C42="",0,IF(入力!C42="(選択してください)","年齢選択エラー",IF(入力!H42="","年齢選択エラー",IF(D6+C6-G6>0,1,IF(D6=0,IF(入力!S42>550000,1,0),0))))) -> 0
B8: 年齢 | C8: 年金所得 | D8: 給与所得 | E8: その他の所得 | F8: 所得金額調整控除額 | G8: 高齢者特別控除 | H8: 所得金額調整控除(軽減判定所得用) | I8: 軽減判定所得3 | J8: 年金給与所得者の数
A9: 世帯主 | B9: =IF(ISBLANK(H47),0,入力!H47) -> 0 | C9: =IF(入力!C47="v",年金条件式!I6,0) -> 0 | D9: =VLOOKUP(入力!S47,給与所得!$B$48:$C$59,2) -> 0 | E9: =入力!Z47 -> 0 | F9: =IF(MIN(100000,C9)+MIN(100000,D9)-100000<0,0,MIN(100000,C9)+MIN(100000,D9)-100000) -> 0 | G9: =IF(入力!H47="65歳以上",MIN(150000,C9),0) -> 0 | H9: =IF(MIN(100000,C9-G9)+MIN(100000,D9)-100000<0,0,MIN(100000,C9-G9)+MIN(100000,D9)-100000) -> 0 | I9: =IF(入力!C47="",0,IF(入力!H47="(選択してください)","年齢選択エラー",IF(入力!H47="","年齢選択エラー",(MAX(SUM(C9:E9)-H9-G9,0))))) -> 0 | J9: =IF(入力!C47="",0,IF(入力!C47="(選択してください)","年齢選択エラー",IF(入力!H47="","年齢選択エラー",IF(D9+C9-G9>0,1,IF(D9=0,IF(入力!S47>550000,1,0),0))))) -> 0
A11: 年度 | B11: 賦課期日 | C11: 所得割率 | D11: 均等割額 | E11: 賦課限度額 | H11: 軽減判定所得(計) | I11: 軽減基準額
A12: R2 | B12: 2020-04-01 | C12: 0.0838 | D12: 44170 | E12: 660000 | H12: =IF(OR(J2="年齢選択エラー",I5="年齢選択エラー",I6="年齢選択エラー",I9="年齢選択エラー"),"年齢選択エラー",J2+I5+I6+I9) -> 年齢選択エラー | I12: 計算シートにて算出
A13: R3 | B13: 2021-04-01 | C13: 0.0838 | D13: 44170 | E13: 660000
A14: R4 | B14: 2022-04-01 | C14: ？% | D14: ？ | E14: ？
A15: R5 | B15: 2022-04-01 | C15: ？% | D15: ？ | E15: ？
B17: 被保険者
A18: 令和2年4月以前 | B18: 12
A19: 令和2年5月 | B19: 11
A20: 令和2年6月 | B20: 10
A21: 令和2年7月 | B21: 9
A22: 令和2年8月 | B22: 8
A23: 令和2年9月 | B23: 7
A24: 令和2年10月 | B24: 6
A25: 令和2年11月 | B25: 5
A26: 令和2年12月 | B26: 4
A27: 令和3年1月 | B27: 3
A28: 令和3年2月 | B28: 2
A29: 令和3年3月 | B29: 1
B31: 軽減割合
A32: 0.7 | B32: 7
A33: 0.775 | B33: 7
A34: 0.5 | B34: 5
A35: 0.2 | B35: 2
A36: 0 | B36: ―

Sheet 年金条件式 (hidden)
C1: 年齢65以上
C2: 所得（1,000～2000万円） | D2: 所得（2,000万円超） | E2: ６５歳以上 | F2: 判定 | I2: 年金所得
B3: 被保険者 | C3: =IF(SUM(設定!E2:F2)>=10000000,1,0) -> 0 | D3: =IF(SUM(設定!E2:F2)>=20000000,1,0) -> 0 | E3: =IF(入力!H32="65歳以上",10,0) -> 0 | F3: =SUM(C3:E3) -> 0 | G3: 入力!$I$32 | I3: =IF(F3=10,VLOOKUP(入力!$L$32,$C$12:$F$16,2),IF(F3=11,VLOOKUP(入力!$L$32,$C$12:$F$16,3),IF(F3=12,VLOOKUP(入力!$L$32,$C$12:$F$16,4),IF(F3=0,VLOOKUP(入力!$L$32,J12:M16,2),IF(F3=1,VLOOKUP(入力!$L$32,J12:M16,3)*IF(F3=2,VLOOKUP(入力!$L$32,J12:M16,3))))))) -> 0
B4: 家族１ | C4: =IF(SUM(設定!D5:E5)>=10000000,1,0) -> 0 | D4: =IF(SUM(設定!D5:E5)>=20000000,1,0) -> 0 | E4: =IF(入力!H37="65歳以上",10,0) -> 0 | F4: =SUM(C4:E4) -> 0 | G4: 入力!$I$37 | I4: =IF(F4=10,VLOOKUP(入力!$L$37,C20:F24,2),IF(F4=11,VLOOKUP(入力!$L$37,C20:F24,3),IF(F4=12,VLOOKUP(入力!$L$37,C20:F24,4),IF(F4=0,VLOOKUP(入力!$L$37,J20:M24,2),IF(F4=1,VLOOKUP(入力!$L$37,J20:M24,3)*IF(F4=2,VLOOKUP(入力!$L$37,J20:M24,4))))))) -> 0
B5: 家族２ | C5: =IF(SUM(設定!D6:E6)>=10000000,1,0) -> 0 | D5: =IF(SUM(設定!D6:E6)>=20000000,1,0) -> 0 | E5: =IF(入力!H42="65歳以上",10,0) -> 0 | F5: =SUM(C5:E5) -> 0 | G5: 入力!$I$42 | I5: =IF(F5=10,VLOOKUP(入力!$L$42,C29:F33,2),IF(F5=11,VLOOKUP(入力!$L$42,C29:F33,3),IF(F5=12,VLOOKUP(入力!$L$42,C29:F33,4),IF(F5=0,VLOOKUP(入力!$L$42,J29:M33,2),IF(F5=1,VLOOKUP(入力!$L$42,J29:M33,3),IF(F5=2,VLOOKUP(入力!$L$42,J29:M33,4))))))) -> 0
B6: 世帯主 | C6: =IF(SUM(設定!D9:E9)>=10000000,1,0) -> 0 | D6: =IF(SUM(設定!D9:E9)>=20000000,1,0) -> 0 | E6: =IF(入力!H47="65歳以上",10,0) -> 0 | F6: =SUM(C6:E6) -> 0 | G6: 入力!$L$47 | I6: =IF(F6=0,VLOOKUP(入力!L47,J37:M41,2),IF(F6=1,VLOOKUP(入力!L47,J37:M41,3),IF(F6=2,VLOOKUP(入力!L47,J37:M41,4),IF(F6=10,VLOOKUP(入力!L47,C37:F41,2),IF(F6=11,VLOOKUP(入力!L47,C37:F41,3),IF(F6=12,VLOOKUP(入力!L47,C37:F41,4),"")))))) -> 0
B11: 被保険者 | C11: ６５歳以上 | E11: 所得（1,000～2000万円） | F11: 所得（2,000万円超） | I11: 世帯主 | J11: ６５歳未満 | L11: 所得（1,000～2000万円） | M11: 所得（2,000万円超）
C12: 0 | D12: =IF(入力!$L$32<=1100000,0,入力!$L$32-1100000) -> 0 | E12: =IF(入力!$L$32<=1000000,0,入力!$L$32-1000000) -> 0 | F12: =IF(入力!$L$32<=1100000,0,入力!$L$32-900000) -> 0 | J12: 0 | K12: =IF(入力!$L$32<=600000,0,入力!$L$32-600000) -> 0 | L12: =IF(入力!$L$32<=500000,0,入力!$L$32-500000) -> 0 | M12: =IF(入力!$L$32<=400000,0,入力!$L$32-400000) -> 0
C13: 3300000 | D13: =ROUNDDOWN(入力!$L$32*0.75-275000,0) -> -275000 | E13: =ROUNDDOWN(入力!$L$32*0.75-175000,0) -> -175000 | F13: =ROUNDDOWN(入力!$L$32*0.75-75000,0) -> -75000 | J13: 1300000 | K13: =ROUNDDOWN(入力!$L$32*0.75-275000,0) -> -275000 | L13: =ROUNDDOWN(入力!$L$32*0.75-175000,0) -> -175000 | M13: =ROUNDDOWN(入力!$L$32*0.75-75000,0) -> -75000
C14: 4100000 | D14: =ROUNDDOWN(入力!$L$32*0.85-685000,0) -> -685000 | E14: =ROUNDDOWN(入力!$L$32*0.85-585000,0) -> -585000 | F14: =ROUNDDOWN(入力!$L$32*0.85-485000,0) -> -485000 | J14: 4100000 | K14: =ROUNDDOWN(入力!$L$32*0.85-685000,0) -> -685000 | L14: =ROUNDDOWN(入力!$L$32*0.85-585000,0) -> -585000 | M14: =ROUNDDOWN(入力!$L$32*0.85-485000,0) -> -485000
C15: 7700000 | D15: =ROUNDDOWN(入力!$L$32*0.95-1455000,0) -> -1455000 | E15: =ROUNDDOWN(入力!$L$32*0.95-1355000,0) -> -1355000 | F15: =ROUNDDOWN(入力!$L$32*0.95-1255000,0) -> -1255000 | J15: 7700000 | K15: =ROUNDDOWN(入力!$L$32*0.95-1455000,0) -> -1455000 | L15: =ROUNDDOWN(入力!$L$32*0.95-1355000,0) -> -1355000 | M15: =ROUNDDOWN(入力!$L$32*0.95-1255000,0) -> -1255000
C16: 10000000 | D16: =ROUNDDOWN(入力!$L$32*1-1955000,0) -> -1955000 | E16: =ROUNDDOWN(入力!$L$32*1-1855000,0) -> -1855000 | F16: =ROUNDDOWN(入力!$L$32*1-1755000,0) -> -1755000 | J16: 10000000 | K16: =ROUNDDOWN(入力!$L$32*1-1955000,0) -> -1955000 | L16: =ROUNDDOWN(入力!$L$32*1-1855000,0) -> -1855000 | M16: =ROUNDDOWN(入力!$L$32*1-1755000,0) -> -1755000
B19: 家族１ | C19: ６５歳以上 | E19: 所得（1,000～2000万円） | F19: 所得（2,000万円超） | I19: 世帯主 | J19: ６５歳未満 | L19: 所得（1,000～2000万円） | M19: 所得（2,000万円超）
C20: 0 | D20: =IF(入力!$L$37<=1100000,0,入力!$L$37-1100000) -> 0 | E20: =IF(入力!$L$37<=1000000,0,入力!$L$37-1000000) -> 0 | F20: =IF(入力!$L$37<=1100000,0,入力!$L$37-900000) -> 0 | J20: 0 | K20: =IF(入力!$L$37<=600000,0,入力!$L$37-600000) -> 0 | L20: =IF(入力!$L$37<=500000,0,入力!$L$37-500000) -> 0 | M20: =IF(入力!$L$37<=400000,0,入力!$L$37-400000) -> 0
C21: 3300000 | D21: =ROUNDDOWN(入力!$L$37*0.75-275000,0) -> -275000 | E21: =ROUNDDOWN(入力!$L$37*0.75-175000,0) -> -175000 | F21: =ROUNDDOWN(入力!$L$37*0.75-75000,0) -> -75000 | J21: 1300000 | K21: =ROUNDDOWN(入力!$L$37*0.75-275000,0) -> -275000 | L21: =ROUNDDOWN(入力!$L$37*0.75-175000,0) -> -175000 | M21: =ROUNDDOWN(入力!$L$37*0.75-75000,0) -> -75000
C22: 4100000 | D22: =ROUNDDOWN(入力!$L$37*0.85-685000,0) -> -685000 | E22: =ROUNDDOWN(入力!$L$37*0.85-585000,0) -> -585000 | F22: =ROUNDDOWN(入力!$L$37*0.85-485000,0) -> -485000 | J22: 4100000 | K22: =ROUNDDOWN(入力!$L$37*0.85-685000,0) -> -685000 | L22: =ROUNDDOWN(入力!$L$37*0.85-585000,0) -> -585000 | M22: =ROUNDDOWN(入力!$L$37*0.85-485000,0) -> -485000
C23: 7700000 | D23: =ROUNDDOWN(入力!$L$37*0.95-1455000,0) -> -1455000 | E23: =ROUNDDOWN(入力!$L$37*0.95-1355000,0) -> -1355000 | F23: =ROUNDDOWN(入力!$L$37*0.95-1255000,0) -> -1255000 | J23: 7700000 | K23: =ROUNDDOWN(入力!$L$37*0.95-1455000,0) -> -1455000 | L23: =ROUNDDOWN(入力!$L$37*0.95-1355000,0) -> -1355000 | M23: =ROUNDDOWN(入力!$L$37*0.95-1255000,0) -> -1255000
C24: 10000000 | D24: =ROUNDDOWN(入力!$L$37*1-1955000,0) -> -1955000 | E24: =ROUNDDOWN(入力!$L$37*1-1855000,0) -> -1855000 | F24: =ROUNDDOWN(入力!$L$37*1-1755000,0) -> -1755000 | J24: 10000000 | K24: =ROUNDDOWN(入力!$L$37*1-1955000,0) -> -1955000 | L24: =ROUNDDOWN(入力!$L$37*1-1855000,0) -> -1855000 | M24: =ROUNDDOWN(入力!$L$37*1-1755000,0) -> -1755000
B28: 家族２ | C28: ６５歳以上 | E28: 所得（1,000～2000万円） | F28: 所得（2,000万円超） | I28: 世帯主 | J28: ６５歳未満 | L28: 所得（1,000～2000万円） | M28: 所得（2,000万円超）
C29: 0 | D29: =IF(入力!$L$42<=1100000,0,入力!$L$42-1100000) -> 0 | E29: =IF(入力!$L$42<=1000000,0,入力!$L$42-1000000) -> 0 | F29: =IF(入力!$L$42<=1100000,0,入力!$L$42-900000) -> 0 | J29: 0 | K29: =IF(入力!$L$42<=600000,0,入力!$L$42-600000) -> 0 | L29: =IF(入力!$L$42<=500000,0,入力!$L$42-500000) -> 0 | M29: =IF(入力!$L$42<=400000,0,入力!$L$42-400000) -> 0
C30: 3300000 | D30: =ROUNDDOWN(入力!$L$42*0.75-275000,0) -> -275000 | E30: =ROUNDDOWN(入力!$L$42*0.75-175000,0) -> -175000 | F30: =ROUNDDOWN(入力!$L$42*0.75-75000,0) -> -75000 | J30: 1300000 | K30: =ROUNDDOWN(入力!$L$42*0.75-275000,0) -> -275000 | L30: =ROUNDDOWN(入力!$L$42*0.75-175000,0) -> -175000 | M30: =ROUNDDOWN(入力!$L$42*0.75-75000,0) -> -75000
C31: 4100000 | D31: =ROUNDDOWN(入力!$L$42*0.85-685000,0) -> -685000 | E31: =ROUNDDOWN(入力!$L$42*0.85-585000,0) -> -585000 | F31: =ROUNDDOWN(入力!$L$42*0.85-485000,0) -> -485000 | J31: 4100000 | K31: =ROUNDDOWN(入力!$L$42*0.85-685000,0) -> -685000 | L31: =ROUNDDOWN(入力!$L$42*0.85-585000,0) -> -585000 | M31: =ROUNDDOWN(入力!$L$42*0.85-485000,0) -> -485000
C32: 7700000 | D32: =ROUNDDOWN(入力!$L$42*0.95-1455000,0) -> -1455000 | E32: =ROUNDDOWN(入力!$L$42*0.95-1355000,0) -> -1355000 | F32: =ROUNDDOWN(入力!$L$42*0.95-1255000,0) -> -1255000 | J32: 7700000 | K32: =ROUNDDOWN(入力!$L$42*0.95-1455000,0) -> -1455000 | L32: =ROUNDDOWN(入力!$L$42*0.95-1355000,0) -> -1355000 | M32: =ROUNDDOWN(入力!$L$42*0.95-1255000,0) -> -1255000
C33: 10000000 | D33: =ROUNDDOWN(入力!$L$42*1-1955000,0) -> -1955000 | E33: =ROUNDDOWN(入力!$L$42*1-1855000,0) -> -1855000 | F33: =ROUNDDOWN(入力!$L$42*1-1755000,0) -> -1755000 | J33: 10000000 | K33: =ROUNDDOWN(入力!$L$42*1-1955000,0) -> -1955000 | L33: =ROUNDDOWN(入力!$L$42*1-1855000,0) -> -1855000 | M33: =ROUNDDOWN(入力!$L$42*1-1755000,0) -> -1755000
B36: 世帯主 | C36: ６５歳以上 | E36: 所得（1,000～2000万円） | F36: 所得（2,000万円超） | I36: 世帯主 | J36: ６５歳未満 | L36: 所得（1,000～2000万円） | M36: 所得（2,000万円超）
C37: 0 | D37: =IF(入力!$L$47<=1100000,0,入力!$L$47-1100000) -> 0 | E37: =IF(入力!$L$47<=1000000,0,入力!$L$47-1000000) -> 0 | F37: =IF(入力!$L$47<=1100000,0,入力!$L$47-900000) -> 0 | J37: 0 | K37: =IF(入力!$L$47<=600000,0,入力!$L$47-600000) -> 0 | L37: =IF(入力!$L$47<=500000,0,入力!$L$47-500000) -> 0 | M37: =IF(入力!$L$47<=400000,0,入力!$L$47-400000) -> 0
C38: 3300000 | D38: =ROUNDDOWN(入力!$L$47*0.75-275000,0) -> -275000 | E38: =ROUNDDOWN(入力!$L$47*0.75-175000,0) -> -175000 | F38: =ROUNDDOWN(入力!$L$47*0.75-75000,0) -> -75000 | J38: 1300000 | K38: =ROUNDDOWN(入力!$L$47*0.75-275000,0) -> -275000 | L38: =ROUNDDOWN(入力!$L$47*0.75-175000,0) -> -175000 | M38: =ROUNDDOWN(入力!$L$47*0.75-75000,0) -> -75000
C39: 4100000 | D39: =ROUNDDOWN(入力!$L$47*0.85-685000,0) -> -685000 | E39: =ROUNDDOWN(入力!$L$47*0.85-585000,0) -> -585000 | F39: =ROUNDDOWN(入力!$L$47*0.85-485000,0) -> -485000 | J39: 4100000 | K39: =ROUNDDOWN(入力!$L$47*0.85-685000,0) -> -685000 | L39: =ROUNDDOWN(入力!$L$47*0.85-585000,0) -> -585000 | M39: =ROUNDDOWN(入力!$L$47*0.85-485000,0) -> -485000
C40: 7700000 | D40: =ROUNDDOWN(入力!$L$47*0.95-1455000,0) -> -1455000 | E40: =ROUNDDOWN(入力!$L$47*0.95-1355000,0) -> -1355000 | F40: =ROUNDDOWN(入力!$L$47*0.95-1255000,0) -> -1255000 | J40: 7700000 | K40: =ROUNDDOWN(入力!$L$47*0.95-1455000,0) -> -1455000 | L40: =ROUNDDOWN(入力!$L$47*0.95-1355000,0) -> -1355000 | M40: =ROUNDDOWN(入力!$L$47*0.95-1255000,0) -> -1255000
C41: 10000000 | D41: =ROUNDDOWN(入力!$L$47*1-1955000,0) -> -1955000 | E41: =ROUNDDOWN(入力!$L$47*1-1855000,0) -> -1855000 | F41: =ROUNDDOWN(入力!$L$47*1-1755000,0) -> -1755000 | J41: 10000000 | K41: =ROUNDDOWN(入力!$L$47*1-1955000,0) -> -1955000 | L41: =ROUNDDOWN(入力!$L$47*1-1855000,0) -> -1855000 | M41: =ROUNDDOWN(入力!$L$47*1-1755000,0) -> -1755000

Sheet 給与所得 (hidden)
A1: 被保険者 | B1: 2020年分
B2: 給与収入 | C2: 給与所得
B3: 0 | C3: 0 | E3: Q32
B4: 551000 | C4: =入力!S32-550000 -> -550000
B5: 1619000 | C5: 1069000
B6: 1620000 | C6: 1070000
B7: 1622000 | C7: 1072000
B8: 1624000 | C8: 1074000
B9: 1628000 | C9: =ROUNDDOWN(ROUNDDOWN(入力!S32/4,-3)*2.4,0)+100000 -> 100000
B10: 1800000 | C10: =ROUNDDOWN(ROUNDDOWN(入力!S32/4,-3)*2.8,0)-80000 -> -80000
B11: 3600000 | C11: =ROUNDDOWN(ROUNDDOWN(入力!S32/4,-3)*3.2,0)-440000 -> -440000
B12: 6600000 | C12: =ROUNDDOWN(入力!S32*0.9,0)-1100000 -> -1100000
B13: 8500000 | C13: 6550000
B14: 8500001 | C14: =入力!S32-1950000 -> -1950000
A16: 家族１ | B16: 2020年分
B17: 給与収入 | C17: 給与所得
B18: 0 | C18: 0 | E18: Q37
B19: 551000 | C19: =入力!S37-550000 -> -550000
B20: 1619000 | C20: 1069000
B21: 1620000 | C21: 1070000
B22: 1622000 | C22: 1072000
B23: 1624000 | C23: 1074000
B24: 1628000 | C24: =ROUNDDOWN(ROUNDDOWN(入力!S37/4,-3)*2.4,0)+100000 -> 100000
B25: 1800000 | C25: =ROUNDDOWN(ROUNDDOWN(入力!S37/4,-3)*2.8,0)-80000 -> -80000
B26: 3600000 | C26: =ROUNDDOWN(ROUNDDOWN(入力!S37/4,-3)*3.2,0)-440000 -> -440000
B27: 6600000 | C27: =ROUNDDOWN(入力!S37*0.9,0)-1100000 -> -1100000
B28: 8500000 | C28: 6550000
B29: 8500001 | C29: =入力!S37-1950000 -> -1950000
A31: 家族２ | B31: 2020年分 | E31: Q42
B32: 給与収入 | C32: 給与所得
B33: 0 | C33: 0
B34: 551000 | C34: =入力!S42-550000 -> -550000
B35: 1619000 | C35: 1069000
B36: 1620000 | C36: 1070000
B37: 1622000 | C37: 1072000
B38: 1624000 | C38: 1074000
B39: 1628000 | C39: =ROUNDDOWN(ROUNDDOWN(入力!S42/4,-3)*2.4,0)+100000 -> 100000
B40: 1800000 | C40: =ROUNDDOWN(ROUNDDOWN(入力!S42/4,-3)*2.8,0)-80000 -> -80000
B41: 3600000 | C41: =ROUNDDOWN(ROUNDDOWN(入力!S42/4,-3)*3.2,0)-440000 -> -440000
B42: 6600000 | C42: =ROUNDDOWN(入力!S42*0.9,0)-1100000 -> -1100000
B43: 8500000 | C43: 6550000
B44: 8500001 | C44: =入力!S42-1950000 -> -1950000
A46: 世帯主 | B46: 2020年分 | E46: S47
B47: 給与収入 | C47: 給与所得
B48: 0 | C48: 0
B49: 551000 | C49: =入力!S47-550000 -> -550000
B50: 1619000 | C50: 1069000
B51: 1620000 | C51: 1070000
B52: 1622000 | C52: 1072000
B53: 1624000 | C53: 1074000
B54: 1628000 | C54: =ROUNDDOWN(ROUNDDOWN(入力!S47/4,-3)*2.4,0)+100000 -> 100000
B55: 1800000 | C55: =ROUNDDOWN(ROUNDDOWN(入力!S47/4,-3)*2.8,0)-80000 -> -80000
B56: 3600000 | C56: =ROUNDDOWN(ROUNDDOWN(入力!S47/4,-3)*3.2,0)-440000 -> -440000
B57: 6600000 | C57: =ROUNDDOWN(入力!S47*0.9,0)-1100000 -> -1100000
B58: 8500000 | C58: 6550000
B59: 8500001 | C59: =入力!S47-1950000 -> -1950000

Sheet 資格取得月 (hidden)
A1: 資格取得月 | B1: 月数
A2: 令和4年4月以前 | B2: 12
A3: 令和4年5月 | B3: 11
A4: 令和4年6月 | B4: 10
A5: 令和4年7月 | B5: 9
A6: 令和4年8月 | B6: 8
A7: 令和4年9月 | B7: 7
A8: 令和4年10月 | B8: 6
A9: 令和4年11月 | B9: 5
A10: 令和4年12月 | B10: 4
A11: 令和5年1月 | B11: 3
A12: 令和5年2月 | B12: 2
A13: 令和5年3月 | B13: 1

Sheet 計算 (hidden)
A1: 【保険料算定】
B2: 所得合計 | C2: 賦課のもとと なる所得金額 | D2: 所得割率 | E2: 所得割額 | F2: 均等割額 | G2: 算出 保険料額 | H2: 賦課限度額 | I2: 限度超過額 | J2: 均等割 軽減額 | K2: 年 間 保険料額 | L2: 月数 | M2: 月割減額 | N2: 決 定 保険料額
A3: 被保険者 | B3: =設定!D2+設定!E2+設定!F2-設定!G2 -> 0 | C3: =IF(B3>25000000,B3,IF(B3>24500000,B3-150000,IF(B3>24000000,B3-290000,IF(B3-430000<0,0,B3-430000)))) -> 0 | D3: 0.0838 | E3: =ROUNDDOWN(C3*D3,-1) -> 0 | F3: 44170 | G3: =E3+F3 -> 44170 | H3: 660000 | I3: =IF(G3>H3,G3-H3,0) -> 0 | J3: =IF(D17="年齢選択エラー","年齢選択エラー",ROUNDUP(F3*$D$17,-1)) -> 年齢選択エラー | K3: =IF(J3="年齢選択エラー","年齢選択エラー",G3-I3-J3) -> 年齢選択エラー | L3: =設定!C2 -> 資格取得月入力エラー | M3: =IF(OR(L3="資格取得月入力エラー",ISBLANK(L3)),"資格取得月入力エラー",IF(K3="年齢選択エラー","年齢選択エラー",ROUNDUP(K3*(12-L3)/12,0))) -> 資格取得月入力エラー | N3: =IF(M3="資格取得月入力エラー","資格取得月入力エラー",IF(K3="年齢選択エラー","年齢選択エラー",ROUNDDOWN(K3-M3,-2))) -> 資格取得月入力エラー
C4: =IF(B3>25000000,B3,IF(B3<=24000000,IF(B3<=430000,0,B3-430000),IF(AND(B3<=24500000,B3>24000000),B3-290000,IF(AND(B3<=25000000,B3>24500000),B3-150000,)))) -> 0
A5: 【軽減判定所得の計算】
B6: 軽減判定所得
A7: 被保険者 | B7: =設定!J2 -> 年齢選択エラー
A8: 家族１ | B8: =設定!I5 -> 0
A9: 家族２ | B9: =設定!I6 -> 0
A10: 世帯主 | B10: =設定!I9 -> 0
A11: 合計 | B11: =IF(OR(B7="年齢選択エラー",B8="年齢選択エラー",B9="年齢選択エラー",B10="年齢選択エラー"),"年齢選択エラー",SUM(B7:B10)) -> 年齢選択エラー
A13: 世帯の 被保険者数 | B13: 年金・給与所得者の数
A14: =COUNTA(設定!B2)+SUM(設定!B5:B6) -> 1 | B14: =IF(OR(設定!K2="年齢選択エラー",設定!J5="年齢選択エラー",設定!J6="年齢選択エラー",設定!J9="年齢選択エラー"),"年齢選択エラー",設定!K2+設定!J5+設定!J6+設定!J9) -> 年齢選択エラー
B16: 基準額 | C16: 軽減の適用 | D16: 軽減割合
A17: 7割軽減 | B17: =IF(B14="年齢選択エラー","年齢選択エラー",IF(B14=0,430000,430000+100000*(B14-1))) -> 年齢選択エラー | C17: =IF(B11="年齢選択エラー","年齢選択エラー",IF(B11<=B17,"該当","非該当")) -> 年齢選択エラー | D17: =IF(B11="年齢選択エラー","年齢選択エラー",IF(C17="該当",0.7,IF(C18="該当",0.5,IF(C19="該当",0.2,0)))) -> 年齢選択エラー
A18: 5割軽減 | B18: =IF(B14="年齢選択エラー","年齢選択エラー",IF(B14=0,430000+(285000*A14),430000+(285000*A14)+100000*(B14-1))) -> 年齢選択エラー | C18: =IF(B11="年齢選択エラー","年齢選択エラー",IF(C17="該当","",IF(B11<=B18,"該当","非該当"))) -> 年齢選択エラー
A19: 2割軽減 | B19: =IF(B14="年齢選択エラー","年齢選択エラー",IF(B14=0,430000+(520000*A14),430000+(520000*A14)+100000*(B14-1))) -> 年齢選択エラー | C19: =IF(B11="年齢選択エラー","年齢選択エラー",IF(OR(C17="該当",C18="該当"),"",IF(B11<=B19,"該当","非該当"))) -> 年齢選択エラー
